[Event "Titled Tuesday Blitz June 6 Late 2023"]
[White "Schmakel, Sam"]
[Black "Annaberdiyev, Meylis"]
[WhiteFideId "2039311"]
[BlackFideId "14000563"]
[WhiteElo "2356"]
[BlackElo "2416"]
[Result "1-0"]
[Round "7"]
[TimeControl "180+2"]
[Date "2023.06.07"]
[WhiteClock "0:01:17"]
[BlackClock "0:00:24"]
[Board "28"]

1. d4 {[%clk 0:03:00]}  Nf6 {[%clk 0:02:59]} 2. Nc3 {[%clk 0:03:00]}  d5 {[%clk 0:02:58]} 3. Bf4 {[%clk 0:03:01]}  e6 {[%clk 0:02:57]} 4. e3 {[%clk 0:03:01]}  Bb4 {[%clk 0:02:54]} 5. Ne2 {[%clk 0:03:01]}  O-O {[%clk 0:02:49]} 6. h4 {[%clk 0:02:52]}  Nbd7 {[%clk 0:02:15]} 7. h5 {[%clk 0:02:44]}  Re8 {[%clk 0:02:10]} 8. a3 {[%clk 0:02:44]}  Bd6 {[%clk 0:02:08]} 9. Qd2 {[%clk 0:02:36]}  e5 {[%clk 0:01:59]} 10. Bg5 {[%clk 0:02:33]}  h6 {[%clk 0:01:56]} 11. Bh4 {[%clk 0:02:30]}  c6 {[%clk 0:01:51]} 12. g4 {[%clk 0:02:30]}  exd4 {[%clk 0:01:40]} 13. Nxd4 {[%clk 0:02:28]}  Ne5 {[%clk 0:01:41]} 14. Be2 {[%clk 0:02:18]}  c5 {[%clk 0:01:32]} 15. Ndb5 {[%clk 0:02:08]}  d4 {[%clk 0:01:29]} 16. O-O-O {[%clk 0:01:36]}  dxc3 {[%clk 0:01:13]} 17. Qxc3 {[%clk 0:01:35]}  Re6 {[%clk 0:00:40]} 18. Nxd6 {[%clk 0:01:29]}  Rxd6 {[%clk 0:00:40]} 19. Qxe5 {[%clk 0:01:29]}  Rxd1+ {[%clk 0:00:24]} 20. Rxd1 {[%clk 0:01:30]}  Qb6 {[%clk 0:00:24]} 21. Bxf6 {[%clk 0:01:17]}  gxf6 {[%clk 0:00:24]} 22. Qe8+ {[%clk 0:01:16]}  Kg7 {[%clk 0:00:24]} 23. Rd8 {[%clk 0:01:17]} 1-0


[Site "https://www.chess.com"]

[Event "Titled Tuesday Blitz June 6 Late 2023"]
[White "Pakleza, Zbigniew"]
[Black "Bitoon, Richard"]
[WhiteFideId "1119290"]
[BlackFideId "5201110"]
[WhiteElo "2410"]
[BlackElo "2374"]
[Result "0-1"]
[Round "7"]
[TimeControl "180+2"]
[Date "2023.06.07"]
[WhiteClock "0:00:06"]
[BlackClock "0:00:58"]
[Board "31"]

1. d4 {[%clk 0:02:57]}  Nf6 {[%clk 0:03:00]} 2. Nf3 {[%clk 0:02:57]}  g6 {[%clk 0:03:00]} 3. Bf4 {[%clk 0:02:57]}  d6 {[%clk 0:02:56]} 4. h3 {[%clk 0:02:57]}  Bg7 {[%clk 0:02:55]} 5. e3 {[%clk 0:02:58]}  O-O {[%clk 0:02:54]} 6. Be2 {[%clk 0:02:58]}  c5 {[%clk 0:02:55]} 7. c3 {[%clk 0:02:59]}  Nc6 {[%clk 0:02:55]} 8. O-O {[%clk 0:02:59]}  cxd4 {[%clk 0:02:56]} 9. cxd4 {[%clk 0:02:57]}  Nd5 {[%clk 0:02:56]} 10. Bh2 {[%clk 0:02:57]}  Qb6 {[%clk 0:02:49]} 11. Nc3 {[%clk 0:02:54]}  Be6 {[%clk 0:02:46]} 12. e4 {[%clk 0:02:37]}  Nxc3 {[%clk 0:02:46]} 13. bxc3 {[%clk 0:02:38]}  Na5 {[%clk 0:02:43]} 14. Qa4 {[%clk 0:02:16]}  Rfc8 {[%clk 0:02:41]} 15. Rab1 {[%clk 0:02:16]}  Qc7 {[%clk 0:02:41]} 16. Rfc1 {[%clk 0:02:10]}  Bc4 {[%clk 0:02:40]} 17. Bxc4 {[%clk 0:01:57]}  Nxc4 {[%clk 0:02:41]} 18. Bf4 {[%clk 0:01:39]}  a6 {[%clk 0:02:40]} 19. Qb3 {[%clk 0:01:33]}  b5 {[%clk 0:02:40]} 20. a4 {[%clk 0:01:32]}  e5 {[%clk 0:02:26]} 21. Bg3 {[%clk 0:01:16]}  Qc6 {[%clk 0:02:20]} 22. axb5 {[%clk 0:01:10]}  axb5 {[%clk 0:02:18]} 23. dxe5 {[%clk 0:00:43]}  dxe5 {[%clk 0:02:12]} 24. Qxb5 {[%clk 0:00:42]}  Qxe4 {[%clk 0:02:13]} 25. Re1 {[%clk 0:00:41]}  Qf5 {[%clk 0:02:12]} 26. Qb7 {[%clk 0:00:29]}  Re8 {[%clk 0:01:51]} 27. Qd5 {[%clk 0:00:21]}  Rac8 {[%clk 0:01:46]} 28. Rb7 {[%clk 0:00:21]}  Red8 {[%clk 0:01:42]} 29. Qb5 {[%clk 0:00:05]}  Nd6 {[%clk 0:01:43]} 30. Qb6 {[%clk 0:00:05]}  Nxb7 {[%clk 0:01:43]} 31. Qxb7 {[%clk 0:00:06]}  Rxc3 {[%clk 0:01:42]} 32. Nxe5 {[%clk 0:00:06]}  Rxg3 {[%clk 0:01:40]} 33. Nc6 {[%clk 0:00:06]}  Rxg2+ {[%clk 0:01:05]} 34. Kxg2 {[%clk 0:00:07]}  Qg5+ {[%clk 0:01:00]} 35. Kf1 {[%clk 0:00:06]}  Rf8 {[%clk 0:00:58]} 36. Qe7 {[%clk 0:00:06]}  Qb5+ {[%clk 0:00:58]} 0-1


[Site "https://www.chess.com"]

[Event "Titled Tuesday Blitz June 6 Late 2023"]
[White "Vlassov, Nikolai"]
[Black "Oro, Faustino"]
[WhiteFideId "4103360"]
[BlackFideId "20000197"]
[WhiteElo "2324"]
[BlackElo "1984"]
[Result "1-0"]
[Round "7"]
[TimeControl "180+2"]
[Date "2023.06.07"]
[WhiteClock "0:00:13"]
[BlackClock "0:00:01"]
[Board "33"]

1. e4 {[%clk 0:03:00]}  e5 {[%clk 0:02:55]} 2. Bc4 {[%clk 0:03:00]}  Nf6 {[%clk 0:02:55]} 3. d3 {[%clk 0:03:00]}  Nc6 {[%clk 0:02:55]} 4. Nf3 {[%clk 0:03:00]}  Bc5 {[%clk 0:02:55]} 5. Bg5 {[%clk 0:02:59]}  h6 {[%clk 0:02:55]} 6. Bh4 {[%clk 0:02:59]}  d6 {[%clk 0:02:55]} 7. Nc3 {[%clk 0:02:59]}  g5 {[%clk 0:02:55]} 8. Bg3 {[%clk 0:02:59]}  a6 {[%clk 0:02:51]} 9. Nd2 {[%clk 0:02:57]}  Ne7 {[%clk 0:02:50]} 10. h4 {[%clk 0:02:55]}  g4 {[%clk 0:02:50]} 11. h5 {[%clk 0:02:55]}  Be6 {[%clk 0:02:43]} 12. Bh4 {[%clk 0:02:54]}  Neg8 {[%clk 0:02:26]} 13. Nd5 {[%clk 0:02:19]}  Bxd5 {[%clk 0:02:22]} 14. exd5 {[%clk 0:02:19]}  Qd7 {[%clk 0:02:12]} 15. Ne4 {[%clk 0:02:18]}  Nxe4 {[%clk 0:02:11]} 16. dxe4 {[%clk 0:02:18]}  f6 {[%clk 0:01:58]} 17. Be2 {[%clk 0:02:13]}  Qa4 {[%clk 0:01:52]} 18. Qd3 {[%clk 0:02:07]}  Qb4+ {[%clk 0:01:52]} 19. c3 {[%clk 0:02:02]}  Qxb2 {[%clk 0:01:32]} 20. O-O {[%clk 0:01:50]}  O-O-O {[%clk 0:01:16]} 21. Rfb1 {[%clk 0:01:43]}  Qa3 {[%clk 0:01:13]} 22. Bxg4+ {[%clk 0:01:38]}  Kb8 {[%clk 0:01:13]} 23. Rb3 {[%clk 0:01:27]}  Qa5 {[%clk 0:01:12]} 24. Rab1 {[%clk 0:01:16]}  Bb6 {[%clk 0:01:10]} 25. Kh2 {[%clk 0:01:07]}  Rf8 {[%clk 0:01:06]} 26. f3 {[%clk 0:00:59]}  Ne7 {[%clk 0:00:56]} 27. Bd7 {[%clk 0:00:53]}  Rh7 {[%clk 0:00:39]} 28. Be6 {[%clk 0:00:48]}  Rg7 {[%clk 0:00:27]} 29. Qd2 {[%clk 0:00:38]}  Rg5 {[%clk 0:00:10]} 30. Bxg5 {[%clk 0:00:35]}  fxg5 {[%clk 0:00:11]} 31. R1b2 {[%clk 0:00:31]}  Rf4 {[%clk 0:00:11]} 32. Bg4 {[%clk 0:00:27]}  Ng8 {[%clk 0:00:10]} 33. g3 {[%clk 0:00:26]}  Rf8 {[%clk 0:00:09]} 34. Bf5 {[%clk 0:00:19]}  Nf6 {[%clk 0:00:09]} 35. g4 {[%clk 0:00:19]}  Qc5 {[%clk 0:00:06]} 36. Rb1 {[%clk 0:00:18]}  Ne8 {[%clk 0:00:04]} 37. Kg2 {[%clk 0:00:17]}  Ka7 {[%clk 0:00:05]} 38. a4 {[%clk 0:00:17]}  Nf6 {[%clk 0:00:04]} 39. Rb4 {[%clk 0:00:15]}  Rb8 {[%clk 0:00:03]} 40. Be6 {[%clk 0:00:14]}  Ne8 {[%clk 0:00:02]} 41. Bd7 {[%clk 0:00:14]}  Nf6 {[%clk 0:00:02]} 42. Bf5 {[%clk 0:00:14]}  Ne8 {[%clk 0:00:02]} 43. Qd3 {[%clk 0:00:14]}  Nf6 {[%clk 0:00:02]} 44. Rc4 {[%clk 0:00:14]}  Qa3 {[%clk 0:00:01]} 45. Qc2 {[%clk 0:00:13]} 1-0


[Site "https://www.chess.com"]

[Event "Titled Tuesday Blitz June 6 Late 2023"]
[White "Mendez Fortes, Eduardo Jesus"]
[Black "Gadimbayli, Abdulla"]
[WhiteFideId "3502376"]
[BlackFideId "13404938"]
[WhiteElo "2307"]
[BlackElo "2386"]
[Result "0-1"]
[Round "7"]
[TimeControl "180+2"]
[Date "2023.06.07"]
[WhiteClock "0:00:14"]
[BlackClock "0:00:05"]
[Board "34"]

1. e4 {[%clk 0:03:00]}  c5 {[%clk 0:02:56]} 2. Nf3 {[%clk 0:03:00]}  d6 {[%clk 0:02:56]} 3. d4 {[%clk 0:03:00]}  cxd4 {[%clk 0:02:57]} 4. Nxd4 {[%clk 0:03:01]}  Nf6 {[%clk 0:02:55]} 5. Nc3 {[%clk 0:03:01]}  g6 {[%clk 0:02:55]} 6. f3 {[%clk 0:03:01]}  Bg7 {[%clk 0:02:55]} 7. Be3 {[%clk 0:03:01]}  Nc6 {[%clk 0:02:49]} 8. Qd2 {[%clk 0:02:59]}  h5 {[%clk 0:02:49]} 9. Bc4 {[%clk 0:02:58]}  Bd7 {[%clk 0:02:37]} 10. h4 {[%clk 0:02:57]}  a6 {[%clk 0:02:36]} 11. Nxc6 {[%clk 0:02:50]}  bxc6 {[%clk 0:02:25]} 12. O-O-O {[%clk 0:02:46]}  Rb8 {[%clk 0:02:19]} 13. Bxa6 {[%clk 0:02:36]}  d5 {[%clk 0:01:29]} 14. e5 {[%clk 0:02:06]}  Nh7 {[%clk 0:01:10]} 15. Qd4 {[%clk 0:01:28]}  Nf8 {[%clk 0:00:59]} 16. f4 {[%clk 0:00:45]}  Ne6 {[%clk 0:00:57]} 17. Qd2 {[%clk 0:00:31]}  Qa5 {[%clk 0:00:53]} 18. Be2 {[%clk 0:00:29]}  O-O {[%clk 0:00:53]} 19. a3 {[%clk 0:00:27]}  Rfd8 {[%clk 0:00:47]} 20. Bf2 {[%clk 0:00:21]}  Bh6 {[%clk 0:00:41]} 21. g3 {[%clk 0:00:20]}  Be8 {[%clk 0:00:37]} 22. Ne4 {[%clk 0:00:19]}  Qxd2+ {[%clk 0:00:12]} 23. Nxd2 {[%clk 0:00:20]}  c5 {[%clk 0:00:13]} 24. Nf3 {[%clk 0:00:20]}  Bc6 {[%clk 0:00:11]} 25. Ng5 {[%clk 0:00:20]}  Bxg5 {[%clk 0:00:08]} 26. hxg5 {[%clk 0:00:20]}  d4 {[%clk 0:00:06]} 27. Rh2 {[%clk 0:00:21]}  Kg7 {[%clk 0:00:06]} 28. Be1 {[%clk 0:00:20]}  Bd5 {[%clk 0:00:06]} 29. Bd2 {[%clk 0:00:19]}  c4 {[%clk 0:00:06]} 30. Bb4 {[%clk 0:00:18]}  Rd7 {[%clk 0:00:05]} 31. g4 {[%clk 0:00:18]}  Nxf4 {[%clk 0:00:05]} 32. gxh5 {[%clk 0:00:18]}  Nxe2+ {[%clk 0:00:05]} 33. Rxe2 {[%clk 0:00:18]}  Bf3 {[%clk 0:00:06]} 34. h6+ {[%clk 0:00:18]}  Kg8 {[%clk 0:00:06]} 35. h7+ {[%clk 0:00:17]}  Kh8 {[%clk 0:00:06]} 36. Rf2 {[%clk 0:00:18]}  Bxd1 {[%clk 0:00:07]} 37. Kxd1 {[%clk 0:00:18]}  Kg7 {[%clk 0:00:03]} 38. Rh2 {[%clk 0:00:13]}  Rh8 {[%clk 0:00:03]} 39. Bd2 {[%clk 0:00:12]}  Rxh7 {[%clk 0:00:03]} 40. Rf2 {[%clk 0:00:13]}  Rh1+ {[%clk 0:00:02]} 41. Ke2 {[%clk 0:00:13]}  Rb1 {[%clk 0:00:03]} 42. b3 {[%clk 0:00:12]}  cxb3 {[%clk 0:00:04]} 43. cxb3 {[%clk 0:00:13]}  Rxb3 {[%clk 0:00:04]} 44. a4 {[%clk 0:00:14]}  Ra3 {[%clk 0:00:03]} 45. a5 {[%clk 0:00:14]}  Rd5 {[%clk 0:00:03]} 46. Rh2 {[%clk 0:00:13]}  Rxe5+ {[%clk 0:00:04]} 47. Kd1 {[%clk 0:00:14]}  Ra1+ {[%clk 0:00:04]} 48. Kc2 {[%clk 0:00:14]}  Ra2+ {[%clk 0:00:05]} 49. Kd3 {[%clk 0:00:14]}  Rexa5 {[%clk 0:00:05]} 50. Bf4 {[%clk 0:00:14]}  Rxh2 {[%clk 0:00:04]} 51. Bxh2 {[%clk 0:00:14]}  Rxg5 {[%clk 0:00:05]} 0-1


[Site "https://www.chess.com"]

[Event "Titled Tuesday Blitz June 6 Late 2023"]
[White "Mortazavi, Ali"]
[Black "Kushko, Dmitriy"]
[WhiteFideId "401323"]
[BlackFideId "14162261"]
[WhiteElo "2339"]
[BlackElo "2230"]
[Result "1-0"]
[Round "7"]
[TimeControl "180+2"]
[Date "2023.06.07"]
[WhiteClock "0:01:23"]
[BlackClock "0:00:02"]
[Board "36"]

1. Nf3 {[%clk 0:03:00]}  g6 {[%clk 0:02:57]} 2. e4 {[%clk 0:03:00]}  Bg7 {[%clk 0:02:57]} 3. d4 {[%clk 0:03:01]}  d6 {[%clk 0:02:57]} 4. Nc3 {[%clk 0:03:01]}  a6 {[%clk 0:02:57]} 5. Be3 {[%clk 0:03:02]}  b5 {[%clk 0:02:57]} 6. a4 {[%clk 0:03:02]}  b4 {[%clk 0:02:56]} 7. Ne2 {[%clk 0:03:03]}  Nf6 {[%clk 0:02:56]} 8. Ng3 {[%clk 0:03:02]}  O-O {[%clk 0:02:56]} 9. h3 {[%clk 0:03:01]}  Bb7 {[%clk 0:02:55]} 10. Bd3 {[%clk 0:03:02]}  Nbd7 {[%clk 0:02:55]} 11. Qd2 {[%clk 0:03:02]}  c5 {[%clk 0:02:52]} 12. c3 {[%clk 0:03:03]}  bxc3 {[%clk 0:02:34]} 13. bxc3 {[%clk 0:03:02]}  Qc7 {[%clk 0:02:33]} 14. O-O {[%clk 0:03:02]}  e6 {[%clk 0:02:29]} 15. Bh6 {[%clk 0:03:01]}  Rab8 {[%clk 0:02:25]} 16. Qg5 {[%clk 0:02:48]}  Rfe8 {[%clk 0:02:02]} 17. Qh4 {[%clk 0:02:37]}  Bxh6 {[%clk 0:01:48]} 18. Qxh6 {[%clk 0:02:37]}  e5 {[%clk 0:01:37]} 19. d5 {[%clk 0:02:30]}  c4 {[%clk 0:01:36]} 20. Bc2 {[%clk 0:02:29]}  Ba8 {[%clk 0:01:22]} 21. Ng5 {[%clk 0:02:25]}  Rb2 {[%clk 0:01:20]} 22. Rac1 {[%clk 0:02:25]}  Qa5 {[%clk 0:01:08]} 23. Bd1 {[%clk 0:01:58]}  Reb8 {[%clk 0:00:49]} 24. Bg4 {[%clk 0:01:55]}  Qd8 {[%clk 0:00:33]} 25. Bxd7 {[%clk 0:01:47]}  Qxd7 {[%clk 0:00:33]} 26. f4 {[%clk 0:01:30]}  Ra2 {[%clk 0:00:14]} 27. Rb1 {[%clk 0:01:30]}  Rxb1 {[%clk 0:00:08]} 28. Rxb1 {[%clk 0:01:31]}  Qa7+ {[%clk 0:00:06]} 29. Kh2 {[%clk 0:01:30]}  exf4 {[%clk 0:00:06]} 30. Nf5 {[%clk 0:01:24]}  gxf5 {[%clk 0:00:04]} 31. Qxf6 {[%clk 0:01:25]}  fxe4 {[%clk 0:00:02]} 32. Rb8+ {[%clk 0:01:23]} 1-0


[Site "https://www.chess.com"]

[Event "Titled Tuesday Blitz June 6 Late 2023"]
[White "Riff, Jean-Noel"]
[Black "Simonian, Hrair"]
[WhiteFideId "611190"]
[BlackFideId "13302337"]
[WhiteElo "2479"]
[BlackElo "2447"]
[Result "0-1"]
[Round "7"]
[TimeControl "180+2"]
[Date "2023.06.07"]
[WhiteClock "0:00:14"]
[BlackClock "0:01:25"]
[Board "37"]

1. e4 {[%clk 0:03:00]}  c5 {[%clk 0:02:59]} 2. Nf3 {[%clk 0:03:00]}  e6 {[%clk 0:02:59]} 3. d4 {[%clk 0:03:00]}  cxd4 {[%clk 0:02:59]} 4. Nxd4 {[%clk 0:03:01]}  a6 {[%clk 0:02:59]} 5. Nc3 {[%clk 0:03:01]}  b5 {[%clk 0:02:59]} 6. Bd3 {[%clk 0:03:00]}  Bc5 {[%clk 0:02:59]} 7. Nb3 {[%clk 0:02:59]}  Be7 {[%clk 0:02:59]} 8. Qg4 {[%clk 0:02:59]}  g6 {[%clk 0:02:59]} 9. Qe2 {[%clk 0:03:00]}  Bb7 {[%clk 0:02:58]} 10. O-O {[%clk 0:02:58]}  h5 {[%clk 0:02:58]} 11. a4 {[%clk 0:02:55]}  b4 {[%clk 0:02:58]} 12. Na2 {[%clk 0:02:55]}  Nc6 {[%clk 0:02:58]} 13. c3 {[%clk 0:02:54]}  bxc3 {[%clk 0:02:58]} 14. Nxc3 {[%clk 0:02:54]}  Nf6 {[%clk 0:02:58]} 15. h3 {[%clk 0:02:53]}  Ne5 {[%clk 0:02:51]} 16. Bf4 {[%clk 0:02:45]}  Nxd3 {[%clk 0:02:38]} 17. Qxd3 {[%clk 0:02:44]}  d5 {[%clk 0:02:39]} 18. e5 {[%clk 0:02:37]}  Ne4 {[%clk 0:02:39]} 19. Nd4 {[%clk 0:02:29]}  Rc8 {[%clk 0:02:32]} 20. Rac1 {[%clk 0:02:21]}  O-O {[%clk 0:02:32]} 21. Bh6 {[%clk 0:02:18]}  Re8 {[%clk 0:02:31]} 22. f3 {[%clk 0:02:11]}  Ng3 {[%clk 0:02:22]} 23. Rfd1 {[%clk 0:01:43]}  Bg5 {[%clk 0:02:13]} 24. Bxg5 {[%clk 0:01:41]}  Qxg5 {[%clk 0:02:14]} 25. Re1 {[%clk 0:01:32]}  h4 {[%clk 0:02:12]} 26. Qe3 {[%clk 0:01:28]}  Qxe3+ {[%clk 0:02:09]} 27. Rxe3 {[%clk 0:01:29]}  Rc4 {[%clk 0:02:09]} 28. Rd1 {[%clk 0:01:29]}  Bc6 {[%clk 0:01:58]} 29. b3 {[%clk 0:01:22]}  Rxd4 {[%clk 0:01:59]} 30. Rxd4 {[%clk 0:01:21]}  Nf5 {[%clk 0:01:59]} 31. Red3 {[%clk 0:01:21]}  Nxd4 {[%clk 0:01:57]} 32. Rxd4 {[%clk 0:01:22]}  Rb8 {[%clk 0:01:56]} 33. b4 {[%clk 0:01:21]}  Be8 {[%clk 0:01:52]} 34. Rxh4 {[%clk 0:01:05]}  Rc8 {[%clk 0:01:52]} 35. Ne2 {[%clk 0:00:58]}  Bxa4 {[%clk 0:01:51]} 36. Rd4 {[%clk 0:00:55]}  Bb5 {[%clk 0:01:48]} 37. Nf4 {[%clk 0:00:49]}  Rc1+ {[%clk 0:01:42]} 38. Kf2 {[%clk 0:00:48]}  Rf1+ {[%clk 0:01:41]} 39. Kg3 {[%clk 0:00:48]}  Re1 {[%clk 0:01:42]} 40. h4 {[%clk 0:00:36]}  Rxe5 {[%clk 0:01:41]} 41. Kf2 {[%clk 0:00:36]}  g5 {[%clk 0:01:35]} 42. hxg5 {[%clk 0:00:36]}  Rxg5 {[%clk 0:01:36]} 43. Rd2 {[%clk 0:00:30]}  Kf8 {[%clk 0:01:30]} 44. Rc2 {[%clk 0:00:27]}  Bc4 {[%clk 0:01:26]} 45. g4 {[%clk 0:00:24]}  Ke7 {[%clk 0:01:26]} 46. Kg3 {[%clk 0:00:21]}  Rg8 {[%clk 0:01:26]} 47. Ng2 {[%clk 0:00:20]}  Rb8 {[%clk 0:01:26]} 48. Ne3 {[%clk 0:00:15]}  Rxb4 {[%clk 0:01:25]} 49. f4 {[%clk 0:00:14]}  a5 {[%clk 0:01:25]} 50. Kf2 {[%clk 0:00:14]}  a4 {[%clk 0:01:25]} 51. Nd1 {[%clk 0:00:14]}  a3 {[%clk 0:01:25]} 0-1


[Site "https://www.chess.com"]

[Event "Titled Tuesday Blitz June 6 Late 2023"]
[White "Tanenbaum, Zachary"]
[Black "Machidon, Cristi"]
[WhiteFideId "2060850"]
[BlackFideId "13904590"]
[WhiteElo "2207"]
[BlackElo "2355"]
[Result "1-0"]
[Round "7"]
[TimeControl "180+2"]
[Date "2023.06.07"]
[WhiteClock "0:00:26"]
[BlackClock "0:00:02"]
[Board "41"]

1. e4 {[%clk 0:03:00]}  c6 {[%clk 0:02:58]} 2. d4 {[%clk 0:03:00]}  d5 {[%clk 0:02:56]} 3. exd5 {[%clk 0:03:01]}  cxd5 {[%clk 0:02:56]} 4. Bd3 {[%clk 0:03:02]}  Nc6 {[%clk 0:02:57]} 5. c3 {[%clk 0:03:02]}  Nf6 {[%clk 0:02:58]} 6. Bf4 {[%clk 0:03:01]}  Bg4 {[%clk 0:02:58]} 7. Qb3 {[%clk 0:03:01]}  Qd7 {[%clk 0:02:59]} 8. Nd2 {[%clk 0:03:01]}  e6 {[%clk 0:02:59]} 9. Ngf3 {[%clk 0:03:01]}  Bd6 {[%clk 0:02:58]} 10. Bxd6 {[%clk 0:03:01]}  Qxd6 {[%clk 0:02:59]} 11. O-O {[%clk 0:03:01]}  O-O {[%clk 0:02:57]} 12. Rfe1 {[%clk 0:03:01]}  Qc7 {[%clk 0:02:54]} 13. Qc2 {[%clk 0:02:59]}  Bh5 {[%clk 0:02:52]} 14. Ne5 {[%clk 0:02:58]}  Bg6 {[%clk 0:02:52]} 15. Bxg6 {[%clk 0:02:54]}  hxg6 {[%clk 0:02:53]} 16. Qd3 {[%clk 0:02:54]}  Nxe5 {[%clk 0:02:47]} 17. dxe5 {[%clk 0:02:53]}  Nd7 {[%clk 0:02:48]} 18. Nf3 {[%clk 0:02:45]}  Qc4 {[%clk 0:02:42]} 19. Qe3 {[%clk 0:02:42]}  b5 {[%clk 0:02:13]} 20. b3 {[%clk 0:02:27]}  Qc5 {[%clk 0:02:04]} 21. Qd2 {[%clk 0:02:22]}  Rfc8 {[%clk 0:02:01]} 22. Re3 {[%clk 0:02:21]}  a5 {[%clk 0:01:56]} 23. Ng5 {[%clk 0:02:06]}  b4 {[%clk 0:01:52]} 24. c4 {[%clk 0:01:58]}  Nb6 {[%clk 0:01:34]} 25. Rh3 {[%clk 0:01:55]}  Nxc4 {[%clk 0:00:35]} 26. bxc4 {[%clk 0:01:50]}  Qxc4 {[%clk 0:00:36]} 27. Re1 {[%clk 0:01:25]}  a4 {[%clk 0:00:34]} 28. Rf3 {[%clk 0:01:19]}  b3 {[%clk 0:00:30]} 29. axb3 {[%clk 0:01:16]}  axb3 {[%clk 0:00:31]} 30. Nxf7 {[%clk 0:01:06]}  Ra2 {[%clk 0:00:23]} 31. Qg5 {[%clk 0:00:54]}  Qe2 {[%clk 0:00:09]} 32. Re3 {[%clk 0:00:47]}  Qc2 {[%clk 0:00:04]} 33. Nd6 {[%clk 0:00:40]}  b2 {[%clk 0:00:05]} 34. Qg4 {[%clk 0:00:27]}  b1=Q {[%clk 0:00:01]} 35. Qxe6+ {[%clk 0:00:27]}  Kf8 {[%clk 0:00:02]} 36. Qf7# {[%clk 0:00:26]} 1-0


[Site "https://www.chess.com"]

[Event "Titled Tuesday Blitz June 6 Late 2023"]
[White "Jaracz, Pawel"]
[Black "Jimenez Almeida, Luis David"]
[WhiteFideId "1102222"]
[BlackFideId "22242244"]
[WhiteElo "2454"]
[BlackElo "2245"]
[Result "0-1"]
[Round "7"]
[TimeControl "180+2"]
[Date "2023.06.07"]
[WhiteClock "0:00:02"]
[BlackClock "0:00:03"]
[Board "43"]

1. e4 {[%clk 0:03:00]}  c5 {[%clk 0:02:56]} 2. Nf3 {[%clk 0:03:01]}  e6 {[%clk 0:02:56]} 3. d4 {[%clk 0:03:01]}  cxd4 {[%clk 0:02:56]} 4. Nxd4 {[%clk 0:03:01]}  a6 {[%clk 0:02:57]} 5. Bd3 {[%clk 0:03:01]}  Qc7 {[%clk 0:02:57]} 6. O-O {[%clk 0:03:00]}  Nc6 {[%clk 0:02:57]} 7. Nxc6 {[%clk 0:03:00]}  bxc6 {[%clk 0:02:58]} 8. c4 {[%clk 0:02:59]}  Nf6 {[%clk 0:02:56]} 9. Nc3 {[%clk 0:02:57]}  e5 {[%clk 0:02:55]} 10. Kh1 {[%clk 0:02:56]}  Be7 {[%clk 0:02:46]} 11. Be3 {[%clk 0:02:42]}  d6 {[%clk 0:02:40]} 12. h3 {[%clk 0:02:36]}  Be6 {[%clk 0:02:36]} 13. Rc1 {[%clk 0:02:35]}  O-O {[%clk 0:02:33]} 14. Nd5 {[%clk 0:02:14]}  Qb7 {[%clk 0:02:09]} 15. Nxe7+ {[%clk 0:02:08]}  Qxe7 {[%clk 0:02:10]} 16. f4 {[%clk 0:01:54]}  exf4 {[%clk 0:02:00]} 17. Bxf4 {[%clk 0:01:54]}  Nd7 {[%clk 0:02:00]} 18. Be2 {[%clk 0:01:47]}  Ne5 {[%clk 0:01:43]} 19. c5 {[%clk 0:01:47]}  Rfd8 {[%clk 0:01:38]} 20. Qa4 {[%clk 0:01:39]}  f6 {[%clk 0:01:29]} 21. cxd6 {[%clk 0:01:37]}  Rxd6 {[%clk 0:01:29]} 22. Bxe5 {[%clk 0:01:35]}  fxe5 {[%clk 0:01:28]} 23. Rxc6 {[%clk 0:01:35]}  Qd7 {[%clk 0:01:10]} 24. Rfc1 {[%clk 0:01:30]}  Bxh3 {[%clk 0:00:44]} 25. Qb3+ {[%clk 0:00:43]}  Be6 {[%clk 0:00:39]} 26. Rxd6 {[%clk 0:00:39]}  Qxd6 {[%clk 0:00:40]} 27. Bc4 {[%clk 0:00:36]}  Re8 {[%clk 0:00:24]} 28. Bxe6+ {[%clk 0:00:29]}  Rxe6 {[%clk 0:00:25]} 29. Rc8+ {[%clk 0:00:28]}  Kf7 {[%clk 0:00:25]} 30. Qf3+ {[%clk 0:00:19]}  Rf6 {[%clk 0:00:19]} 31. Qh5+ {[%clk 0:00:17]}  Rg6 {[%clk 0:00:17]} 32. Qf3+ {[%clk 0:00:14]}  Rf6 {[%clk 0:00:17]} 33. Qb3+ {[%clk 0:00:14]}  Kg6 {[%clk 0:00:12]} 34. Rc3 {[%clk 0:00:11]}  Rf1+ {[%clk 0:00:09]} 35. Kh2 {[%clk 0:00:11]}  h6 {[%clk 0:00:09]} 36. Qg8 {[%clk 0:00:09]}  Qf6 {[%clk 0:00:05]} 37. Rg3+ {[%clk 0:00:08]}  Kh5 {[%clk 0:00:05]} 38. Qe8+ {[%clk 0:00:05]}  g6 {[%clk 0:00:05]} 39. Rh3+ {[%clk 0:00:05]}  Kg5 {[%clk 0:00:06]} 40. Rg3+ {[%clk 0:00:03]}  Kh5 {[%clk 0:00:06]} 41. Qd7 {[%clk 0:00:03]}  g5 {[%clk 0:00:03]} 42. Qe8+ {[%clk 0:00:01]}  Qf7 {[%clk 0:00:03]} 43. Rh3+ {[%clk 0:00:01]}  Kg6 {[%clk 0:00:03]} 44. Qxe5 {[%clk 0:00:01]}  Qf4+ {[%clk 0:00:03]} 45. Qxf4 {[%clk 0:00:02]}  Rxf4 {[%clk 0:00:03]} 0-1


[Site "https://www.chess.com"]

[Event "Titled Tuesday Blitz June 6 Late 2023"]
[White "Ozer, Omer Faruk"]
[Black "Garcia Cuenca, Victor"]
[WhiteFideId "6354564"]
[BlackFideId "2250829"]
[WhiteElo "2260"]
[BlackElo "2329"]
[Result "1-0"]
[Round "7"]
[TimeControl "180+2"]
[Date "2023.06.07"]
[WhiteClock "0:01:31"]
[BlackClock "0:00:30"]
[Board "46"]

1. d4 {[%clk 0:03:00]}  Nf6 {[%clk 0:02:58]} 2. c4 {[%clk 0:03:00]}  c5 {[%clk 0:02:58]} 3. d5 {[%clk 0:03:00]}  b5 {[%clk 0:02:57]} 4. e4 {[%clk 0:02:49]}  Nxe4 {[%clk 0:02:54]} 5. Bd3 {[%clk 0:02:49]}  Nf6 {[%clk 0:02:54]} 6. Nc3 {[%clk 0:02:48]}  b4 {[%clk 0:02:27]} 7. Nce2 {[%clk 0:02:45]}  d6 {[%clk 0:02:28]} 8. Nf4 {[%clk 0:02:43]}  g6 {[%clk 0:02:28]} 9. h4 {[%clk 0:02:43]}  h5 {[%clk 0:02:23]} 10. Nf3 {[%clk 0:02:42]}  Bh6 {[%clk 0:02:09]} 11. Ng5 {[%clk 0:02:28]}  Bf5 {[%clk 0:02:06]} 12. Bxf5 {[%clk 0:02:26]}  gxf5 {[%clk 0:02:07]} 13. Qc2 {[%clk 0:02:25]}  Qd7 {[%clk 0:02:06]} 14. b3 {[%clk 0:02:22]}  Bg7 {[%clk 0:01:47]} 15. Bb2 {[%clk 0:02:20]}  Kf8 {[%clk 0:01:43]} 16. O-O-O {[%clk 0:02:06]}  Kg8 {[%clk 0:01:37]} 17. Rde1 {[%clk 0:02:03]}  Na6 {[%clk 0:01:32]} 18. Re3 {[%clk 0:02:01]}  Ng4 {[%clk 0:01:20]} 19. Bxg7 {[%clk 0:02:00]}  Kxg7 {[%clk 0:01:21]} 20. Rg3 {[%clk 0:01:47]}  Nc7 {[%clk 0:01:04]} 21. f3 {[%clk 0:01:47]}  e5 {[%clk 0:01:03]} 22. dxe6 {[%clk 0:01:46]}  fxe6 {[%clk 0:01:04]} 23. fxg4 {[%clk 0:01:46]}  hxg4 {[%clk 0:01:05]} 24. Rxg4 {[%clk 0:01:30]}  fxg4 {[%clk 0:00:40]} 25. Qg6+ {[%clk 0:01:30]}  Kf8 {[%clk 0:00:40]} 26. Nfxe6+ {[%clk 0:01:30]}  Nxe6 {[%clk 0:00:39]} 27. Nxe6+ {[%clk 0:01:31]}  Ke7 {[%clk 0:00:37]} 28. Qg7+ {[%clk 0:01:32]}  Kxe6 {[%clk 0:00:30]} 29. Re1+ {[%clk 0:01:31]}  Kf5 {[%clk 0:00:30]} 30. Qg5# {[%clk 0:01:31]} 1-0


[Site "https://www.chess.com"]